bitfinex-derivatives/quotes_ETHF0:USTF0_20250908
["timestamp","ask_amount","ask_price","bid_price","bid_amount"]
[1757343385732,1.12841,4347.7,4347.6,3.7478]
[1757343385940,1.12841,4347.7,4347.6,3.5148]
[1757343386238,1.12841,4347.7,4347.6,3.7478]
[1757343386535,1.12841,4347.7,4347.6,3.9516]
[1757343386734,0.62421,4348.7,4348.6,0.726]
[1757343386925,1.03467,4349.2,4349.0,0.1207]
[1757343387133,1.03462,4349.5,4349.1,0.4368]
[1757343387434,0.41385,4349.3,4349.2,0.5108]
[1757343387635,0.64377,4349.3,4349.2,0.7438]
[1757343387938,0.62422,4348.6,4348.5,0.5397]
[1757343388126,0.83642,4348.6,4348.5,0.5397]
[1757343388331,0.83642,4348.6,4348.5,0.7727]
[1757343390041,0.83642,4348.6,4348.5,1.0797]
[1757343390238,0.41392,4348.6,4348.5,1.0797]
[1757343393238,0.41392,4348.6,4348.5,1.31233166]
[1757343396440,0.41391,4348.7,4348.6,0.3045]
[1757343396744,0.41391,4348.7,4348.6,0.9417]
[1757343397843,1.03457,4349.6,4349.0,0.1284]
[1757343398041,0.62533,4349.6,4349.5,0.8371]
[1757343398342,0.62533,4349.6,4349.5,0.9417]
[1757343398343,1.12253,4349.6,4349.5,0.9417]
[1757343398544,1.12253,4349.6,4349.5,0.233]
[1757343402140,1.12253,4349.6,4349.5,0.5375]
[1757343402344,1.12253,4349.6,4349.5,0.233]
[1757343403552,1.12253,4349.6,4349.5,0.4428]
[1757343403746,1.12253,4349.6,4349.5,0.9417]
[1757343404647,1.12253,4349.6,4349.5,1.0701]
[1757343405149,0.62533,4349.6,4349.5,1.0701]
[1757343406152,0.41383,4349.6,4349.5,1.0701]
[1757343406350,0.62533,4349.6,4349.5,1.0701]
[1757343406946,0.41383,4349.6,4349.5,1.0701]
[1757343407454,0.92323,4349.6,4349.5,1.0701]
[1757343407652,0.62533,4349.6,4349.5,1.0701]
[1757343409348,0.41383,4349.6,4349.5,1.0701]
[1757343413051,0.62533,4349.6,4349.5,1.0701]
[1757343414055,0.92323,4349.6,4349.5,1.0701]
[1757343414661,0.62533,4349.6,4349.5,1.0701]
[1757343415361,0.41383,4349.6,4349.5,1.0701]
[1757343417051,0.62533,4349.6,4349.5,0.8371]
[1757343417252,0.92323,4349.6,4349.5,1.0701]
[1757343417656,1.12253,4349.6,4349.5,1.0701]
[1757343418764,1.12253,4349.6,4349.5,0.9417]
[1757343419465,1.12253,4349.6,4349.5,0.7087]
[1757343419661,1.12253,4349.6,4349.5,0.9417]
[1757343420165,0.41383,4349.6,4349.5,1.0701]
[1757343420759,0.92323,4349.6,4349.5,1.0701]
[1757343421155,0.41383,4349.6,4349.5,1.0701]
[1757343421363,0.41376,4350.3,4349.9,0.7087]
[1757343421669,13.54867,4351.7,4351.1,0.7087]
[1757343421670,0.92307,4351.2,4351.1,0.7087]
[1757343421868,1.12237,4351.2,4351.1,0.9417]
[1757343422668,0.82447,4351.2,4351.1,0.9417]
[1757343422861,0.82447,4351.2,4351.1,1.13048725]
[1757343423258,1.12237,4351.2,4351.1,1.13048725]
[1757343423559,0.82447,4351.2,4351.1,1.13048725]
[1757343423867,0.62517,4351.2,4351.1,1.13048725]
[1757343424266,1.12237,4351.2,4351.1,0.89748725]
[1757343424565,1.12237,4351.2,4351.1,1.13048725]
[1757343424762,0.82447,4351.2,4351.1,1.13048725]
[1757343425163,0.41367,4351.2,4351.1,1.13048725]
[1757343426169,0.41367,4351.2,4351.1,4.10487906]
[1757343426564,1.03406,4351.7,4351.1,4.10487906]
[1757343426766,1.348,4352.1,4351.9,0.4087]
[1757343426963,0.7283,4352.0,4351.9,0.7007]
[1757343427168,0.7283,4352.0,4351.9,0.9337]
[1757343427368,1.1419,4352.0,4351.9,0.9337]
[1757343427668,0.6126,4352.0,4351.9,0.9337]
[1757343428059,1.1419,4352.0,4351.9,0.9337]
[1757343428965,1.14193,4351.6,4351.5,4.0266]
[1757343429267,1.14193,4351.6,4351.5,4.2596]
[1757343432965,1.14193,4351.6,4351.5,3.9085]
[1757343433271,1.14193,4351.6,4351.5,4.1415]
[1757343433667,1.14193,4351.6,4351.5,3.9085]
[1757343433968,1.14193,4351.6,4351.5,4.1415]
[1757343434569,1.14193,4351.6,4351.5,3.9085]
[1757343434766,1.14193,4351.6,4351.5,4.1415]
[1757343435170,1.14193,4351.6,4351.5,3.9085]
[1757343435372,1.14193,4351.6,4351.5,4.1415]
[1757343435674,1.14193,4351.6,4351.5,3.2078]
[1757343435871,1.14194,4351.6,4351.5,0.233]
[1757343436066,1.14197,4351.2,4351.1,0.4997]
[1757343436378,1.14197,4351.2,4351.1,0.7327]
[1757343436570,1.14197,4351.2,4351.1,0.4997]
[1757343436874,1.14197,4351.2,4351.1,0.7327]
[1757343437079,1.14197,4351.2,4351.1,0.0397]
[1757343437267,1.26659,4351.0,4350.9,3.2078]
[1757343437572,1.26659,4351.0,4350.9,3.4408]
[1757343438974,1.26659,4351.0,4350.9,3.2078]
[1757343439275,1.26659,4351.0,4350.9,3.4408]
[1757343441869,0.4137,4350.9,4350.4,3.2078]
[1757343442074,1.142,4350.9,4350.8,0.233]
[1757343442276,1.142,4350.9,4350.8,1e-05]
[1757343443075,1.142,4350.9,4350.8,0.20771]
[1757343443277,1.142,4350.9,4350.8,0.40871]
[1757343443574,1.03391,4352.4,4351.9,0.4087]
[1757343443774,0.82789,4352.1,4352.0,1.0528]
[1757343443972,0.82789,4352.1,4352.0,0.9347]
[1757343444377,0.82789,4352.1,4352.0,0.2077]
[1757343444581,0.82789,4352.1,4352.0,0.4417]
[1757343444776,0.82789,4352.1,4352.0,0.7337]
[1757343445375,0.82789,4352.1,4352.0,0.9347]
[1757343445576,1.14189,4352.1,4352.0,0.9347]
[1757343446578,0.41359,4352.1,4352.0,1.0528]
[1757343446875,0.61257,4352.3,4352.2,0.4087]
[1757343447179,0.41356,4352.4,4352.3,0.7007]
[1757343447479,0.41355,4352.5,4352.4,0.292]
[1757343447680,0.41355,4352.5,4352.4,4.1425]
[1757343450075,1.03368,4353.4,4352.5,0.1181]
[1757343450282,0.41355,4352.6,4352.5,0.8188]
[1757343450470,0.41355,4352.6,4352.5,1.0528]
[1757343450674,0.92655,4352.6,4352.5,1.0528]
[1757343451382,0.61255,4352.6,4352.5,1.0528]
[1757343452081,0.199,4352.6,4352.5,1.0528]
[1757343452278,0.41353,4352.7,4352.6,0.292]
[1757343452483,1.14176,4353.4,4353.3,0.7007]
[1757343452782,1.37149,4353.4,4353.3,0.9347]
[1757343452977,1.14176,4353.4,4353.3,0.4417]
[1757343453678,1.14176,4353.4,4353.3,0.234]
[1757343459283,0.4135,4353.0,4352.9,3.411]
[1757343459584,1.2784,4353.0,4352.9,3.645]
[1757343459786,1.2784,4353.0,4352.9,3.9558]
[1757343460984,0.6139,4353.0,4352.9,4.1707]
[1757343461286,1.1498,4353.0,4352.9,4.1707]
[1757343461686,0.4135,4353.0,4352.9,4.1707]
[1757343463181,1.1498,4353.0,4352.9,3.9558]
[1757343463386,1.1498,4353.0,4352.9,4.1707]
[1757343464889,1.2784,4353.0,4352.9,4.1707]
[1757343465590,1.2784,4353.0,4352.9,0.9629]
[1757343466289,1.2784,4353.0,4352.9,0.4372]
[1757343466491,1.2784,4353.0,4352.9,0.748]
[1757343467294,1.2784,4353.0,4352.9,0.9629]
[1757343468490,1.1498,4353.0,4352.9,0.9629]
[1757343470687,0.3216,4354.7,4353.4,0.2243]
[1757343470991,1.03292,4356.6,4355.8,0.2794]
[1757343471296,3.2078,4356.7,4356.0,0.4181]
[1757343471297,0.82792,4356.1,4356.0,0.4181]
[1757343471483,0.82792,4356.1,4356.0,3.95448078]
[1757343472291,0.82792,4356.1,4356.0,4.19348078]
[1757343472689,0.82792,4356.1,4356.0,0.53178078]
[1757343472891,0.82792,4356.1,4356.0,0.56758078]
[1757343473095,1.14952,4356.1,4356.0,0.56758078]
[1757343473495,1.14952,4356.1,4356.0,0.75631556]
[1757343473794,1.14952,4356.1,4356.0,0.51731556]
[1757343475494,1.14952,4356.1,4356.0,5.56e-06]
[1757343475990,0.8649,4356.0,4355.9,5.56e-06]
[1757343477897,1.14956,4355.6,4355.5,3.411]
[1757343478099,1.14956,4355.6,4355.5,3.649]
[1757343478398,1.14956,4355.6,4355.5,0.4412]
[1757343479002,1.14956,4355.6,4355.5,0.238]
[1757343479294,0.4147,4355.1,4354.8,1.12454132]
[1757343479493,1.27821,4355.0,4354.9,0.4412]
[1757343479697,1.27821,4355.0,4354.9,0.9669]
[1757343480195,0.93531,4355.0,4354.9,0.9669]
[1757343480391,1.14965,4354.6,4354.5,3.2078]
[1757343480701,1.14965,4354.6,4354.5,3.5486]
[1757343481693,0.93535,4354.6,4354.5,3.5486]
[1757343481998,0.73495,4354.6,4354.5,3.5807]
[1757343482589,0.41335,4354.6,4354.5,3.5807]
[1757343482795,0.38125,4354.6,4354.5,7.5807]
[1757343483300,1.3548,4355.4,4354.5,10.5114615]
[1757343483599,1.35484,4355.2,4355.0,3.2078]
[1757343483799,0.41329,4355.2,4355.1,0.238]
[1757343484000,0.73489,4355.2,4355.1,0.238]
[1757343484201,0.93529,4355.2,4355.1,0.238]
[1757343484996,0.93529,4355.2,4355.1,0.56005616]
[1757343485510,0.93529,4355.2,4355.1,0.67085616]
[1757343485697,1.14399,4355.2,4355.1,0.67085616]
[1757343485895,1.14399,4355.2,4355.1,0.56005616]
[1757343486898,1.14399,4355.2,4355.1,0.61545616]
[1757343487499,1.14399,4355.2,4355.1,0.97178917]
[1757343488202,1.14399,4355.2,4355.1,1.1871718]
[1757343490502,0.97168389,4355.2,4355.1,1.1871718]
[1757343490906,0.97168389,4355.2,4355.1,1.1317718]
[1757343491606,0.97168389,4355.2,4355.1,1.12711363]
[1757343491999,0.97168389,4355.2,4355.1,0.56705747]
[1757343492302,4.97168389,4355.2,4355.1,3.63e-06]
[1757343495604,1.13373,4354.8,4354.7,3.63e-06]
[1757343497704,0.41335,4354.6,4354.5,0.81374132]
[1757343497904,0.82095,4354.6,4354.5,0.237]
[1757343498214,1.25946,4354.5,4354.4,3.2078]
[1757343498410,1.25946,4354.5,4354.4,3.4448]
[1757343498617,1.25946,4354.5,4354.4,0.237]
[1757343498803,1.25946,4354.5,4354.4,1e-05]
[1757343499009,1.25946,4354.5,4354.4,0.81532961]
[1757343499209,1.13377,4354.4,4354.3,0.237]
[1757343499903,0.41339,4354.2,4354.1,1.22141451]
[1757343500108,0.41339,4354.2,4353.8,33.082]
[1757343500109,0.41342,4353.9,4353.8,33.082]
[1757343500308,0.72622,4353.9,4353.8,33.319]
[1757343500516,0.72622,4353.9,4353.8,33.082]
[1757343500716,0.72622,4353.9,4353.8,33.319]
[1757343502616,1.25956,4353.5,4353.4,3.2632]
[1757343502817,1.25956,4353.5,4353.4,3.5002]
[1757343503320,0.4135,4353.0,4352.9,3.38969454]
[1757343503520,1.0509,4353.0,4352.9,3.5556]
[1757343503832,1.0509,4353.0,4352.9,3.74298584]
[1757343504016,0.852,4353.0,4352.9,5.39361135]
[1757343504219,0.852,4353.0,4352.9,5.72318867]
[1757343504823,1.0509,4353.0,4352.9,5.68858867]
[1757343505827,1.0509,4353.0,4352.9,5.26420283]
[1757343506019,1.0509,4353.0,4352.9,5.50120283]
[1757343508329,1.0509,4353.0,4352.9,5.26420283]
[1757343508623,1.2596,4353.0,4352.9,5.50120283]
[1757343509127,1.2596,4353.0,4352.9,3.85057732]
[1757343509526,1.2596,4353.0,4352.9,3.8503525]
[1757343512726,1.0509,4353.0,4352.9,3.8503525]
[1757343513834,1.2596,4353.0,4352.9,3.6133525]
[1757343514131,1.2596,4353.0,4352.9,3.8503525]
[1757343514834,1.0509,4353.0,4352.9,3.8503525]
[1757343515131,1.0509,4353.0,4352.9,3.5556]
[1757343517630,1.264,4353.0,4352.9,3.5556]
[1757343517831,0.41354,4352.6,4352.5,1.65062551]
[1757343518034,1.16464,4352.6,4352.5,1.96902551]
[1757343518337,0.7511,4352.4,4352.3,3.2078]
[1757343518540,0.7511,4352.4,4352.3,3.5262]
[1757343518735,1.16466,4352.4,4352.3,3.5262]
[1757343521042,1.16466,4352.4,4352.3,0.3184]
[1757343521342,1.16467,4352.3,4352.2,1.22397232]
[1757343521542,1.16468,4352.2,4352.1,1.22397232]
[1757343521731,1.16468,4352.2,4352.1,1.54237232]
[1757343521936,1.16468,4352.2,4352.1,0.73160232]
[1757343522239,1.16468,4352.2,4352.1,0.236]
[1757343522942,0.41361,4351.9,4351.8,3.2078]
[1757343523141,1.16471,4351.9,4351.8,0.236]
[1757343523936,1.16471,4351.9,4351.8,0.4008]
[1757343525145,1.16471,4351.9,4351.8,0.3184]
[1757343525444,1.16471,4351.9,4351.8,0.0824]
[1757343525645,1.16471,4351.9,4351.8,0.3184]
[1757343527648,1.16471,4351.9,4351.8,0.4008]
[1757343527649,0.95161,4351.9,4351.8,0.4008]
[1757343527847,0.72811,4351.9,4351.8,0.4523]
[1757343528352,1.16471,4351.9,4351.8,0.4008]
[1757343528547,0.41365,4351.4,4351.3,3.2078]
[1757343528849,1.16475,4351.4,4351.3,3.6086]
[1757343529351,1.16475,4351.4,4351.3,3.6601]
[1757343529352,0.95165,4351.4,4351.3,3.6601]
[1757343529541,0.95165,4351.4,4351.3,3.6086]
[1757343529739,1.16475,4351.4,4351.3,3.4438]
[1757343530844,1.16475,4351.4,4351.3,3.2078]
[1757343531149,1.16475,4351.4,4351.3,3.4438]
[1757343532753,1.16475,4351.4,4351.3,3.6086]
[1757343533138,0.95165,4351.4,4351.3,3.6086]
[1757343535556,1.16475,4351.4,4351.3,3.6086]
[1757343536055,1.16475,4351.4,4351.3,3.4438]
[1757343536656,1.16481,4350.8,4350.7,0.1648]
[1757343536858,1.16481,4350.8,4350.7,0.3184]
[1757343537549,1.16481,4350.8,4350.7,0.4008]
[1757343538058,1.16481,4350.8,4350.7,0.3184]
[1757343538856,1.16481,4350.8,4350.7,0.4008]
[1757343539656,0.72821,4350.8,4350.7,0.4523]
[1757343540154,0.95175,4350.4,4350.3,3.3726]
[1757343540456,0.95175,4350.4,4350.3,3.6086]
[1757343542157,0.95175,4350.4,4350.3,4.8335913]
[1757343543958,1.16485,4350.4,4350.3,4.7511913]
[1757343544363,1.16485,4350.4,4350.3,4.6687913]
[1757343544555,1.16485,4350.4,4350.3,3.2078]
[1757343544860,1.16485,4350.4,4350.3,3.4438]
[1757343545751,0.41375,4350.4,4350.3,3.6391]
[1757343545952,0.74335,4350.4,4350.3,4.8640913]
[1757343546159,0.74335,4350.4,4350.3,3.6391]
[1757343547656,0.96715,4350.4,4350.3,3.6391]
[1757343547857,0.96715,4350.4,4350.3,3.5926]
[1757343552261,1.18315,4350.4,4350.3,3.5926]
[1757343553160,1.18315,4350.4,4350.3,3.5182]
[1757343553466,0.1289,4350.5,4350.0,1.65062551]
[1757343553467,1.18318,4350.1,4350.0,1.65062551]
[1757343553765,1.18318,4350.1,4350.0,1.96002551]
[1757343554263,1.18318,4350.1,4350.0,0.3094]
[1757343554463,1.18318,4350.1,4350.0,1.96002551]
[1757343555168,1.18318,4350.1,4350.0,0.3094]
[1757343556267,1.18318,4350.1,4350.0,0.235]
[1757343556864,0.88059,4350.0,4349.9,34.74562551]
[1757343557064,0.88059,4350.0,4349.9,34.98062551]
[1757343557263,0.88059,4350.0,4349.9,33.33]
[1757343557464,0.88059,4350.0,4349.9,34.98062551]
[1757343557764,1.32039,4350.0,4349.9,0.3094]
[1757343557964,1.32039,4350.0,4349.9,0.3838]
[1757343558164,0.41379,4350.0,4349.9,0.4303]
[1757343558363,0.88059,4350.0,4349.9,0.4303]
[1757343558961,0.41379,4350.0,4349.9,0.4303]
[1757343559563,0.74339,4350.0,4349.9,0.4303]
[1757343560564,0.88059,4350.0,4349.9,0.4303]
[1757343561173,0.88059,4350.0,4349.9,0.3838]
[1757343561368,1.10439,4350.0,4349.9,0.3838]
[1757343561670,1.32039,4350.0,4349.9,0.3838]
[1757343562273,1.1832,4349.9,4349.8,3.2078]
[1757343562474,1.1832,4349.9,4349.8,3.4428]
[1757343562972,1.1832,4349.9,4349.8,3.5172]
[1757343563967,0.9672,4349.9,4349.8,3.5916]
[1757343565066,1.1832,4349.9,4349.8,3.5916]
[1757343565270,1.1832,4349.9,4349.8,3.4428]
[1757343565470,1.1832,4349.9,4349.8,0.235]
[1757343565677,0.63763,4349.6,4349.5,2.18843172]
[1757343565973,0.96723,4349.6,4349.5,2.42343172]
[1757343566170,0.96723,4349.6,4349.5,2.61181924]
[1757343567271,1.18323,4349.6,4349.5,2.61181924]
[1757343568571,1.18323,4349.6,4349.5,2.37681924]
[1757343568767,1.18323,4349.6,4349.5,2.61181924]
[1757343569665,1.18323,4349.6,4349.5,0.57218752]
[1757343572771,1.18323,4349.6,4349.5,2.62333699]
[1757343573270,1.18323,4349.6,4349.5,2.05114947]
[1757343573572,1.18323,4349.6,4349.5,0.235]
[1757343573778,1.18323,4349.6,4349.5,0.3016]
[1757343574274,1.18323,4349.6,4349.5,0.235]
[1757343576175,1.18323,4349.6,4349.5,1.87367145]
[1757343578270,1.18323,4349.6,4349.5,0.235]
[1757343579283,0.41385,4349.4,4349.3,4.84647145]
[1757343579466,1.15945,4349.4,4349.3,5.08147145]
[1757343579672,1.15945,4349.4,4349.3,0.235]
[1757343581676,1.15945,4349.4,4349.3,0.3568]
[1757343584481,0.41385,4349.4,4349.3,3.6026]
[1757343585073,0.63585,4349.4,4349.3,3.6026]
[1757343585677,0.41385,4349.4,4349.3,3.6026]
[1757343585874,3.2078,4350.8,4349.4,0.3132]
[1757343586182,0.84576,4350.4,4350.3,0.7317]
[1757343586378,1.15936,4350.4,4350.3,0.9667]
[1757343588879,0.41376,4350.4,4350.3,0.9667]
[1757343589078,0.41376,4350.4,4350.3,2.60508642]
[1757343589379,0.41375,4350.5,4350.4,0.3132]
[1757343589580,0.41373,4350.7,4350.6,0.7317]
[1757343589882,0.41371,4350.9,4350.8,0.4185]
[1757343590077,0.41371,4350.9,4350.8,4.1745]
[1757343590788,0.41371,4350.9,4350.8,5.95166707]
[1757343591184,0.41368,4351.2,4351.1,0.7317]
[1757343591379,1.16112,4352.0,4351.7,0.4185]
[1757343591380,0.3136,4351.8,4351.7,0.4185]
[1757343591579,0.94922,4351.8,4351.7,0.9667]
[1757343591786,0.94922,4351.8,4351.7,1.10733518]
[1757343591984,1.15922,4351.8,4351.7,1.10733518]
[1757343592185,1.15922,4351.8,4351.7,0.79413518]
[1757343592383,1.15922,4351.8,4351.7,0.55913518]
[1757343592585,1.15922,4351.8,4351.7,0.79413518]
[1757343592988,1.15922,4351.8,4351.7,2.01899449]
[1757343593181,0.63562,4351.8,4351.7,2.33219449]
[1757343593484,1.15922,4351.8,4351.7,2.33219449]
[1757343594082,1.15922,4351.8,4351.7,1.10733518]
[1757343594585,1.15922,4351.8,4351.7,0.58673518]
[1757343594782,0.94922,4351.8,4351.7,1.10733518]
[1757343594980,1.15922,4351.8,4351.7,1.10733518]
[1757343595584,0.41362,4351.8,4351.7,1.10733518]
[1757343595780,0.94922,4351.8,4351.7,1.10733518]
[1757343596086,0.41362,4351.8,4351.7,1.10733518]
[1757343597592,0.41362,4351.8,4351.7,2.32838348]
[1757343598087,0.41362,4351.8,4351.7,1.10733518]
[1757343599185,0.41359,4352.2,4351.8,0.3132]
[1757343599386,0.41359,4352.2,4352.1,3.9395]
[1757343599586,0.41359,4352.2,4352.1,4.1735]
[1757343599889,0.41359,4352.2,4352.1,4.31413518]
[1757343600387,1.03385,4352.8,4352.2,0.7317]
[1757343600388,0.41358,4352.3,4352.2,0.7317]
[1757343600586,0.41358,4352.3,4352.2,0.9657]
[1757343600787,0.41358,4352.3,4352.2,1.10633518]
[1757343601186,0.72715,4352.6,4352.3,0.3132]
[1757343601391,0.41356,4352.5,4352.4,0.9657]
[1757343601595,0.94916,4352.5,4352.4,0.9657]
[1757343601804,1.28626,4352.5,4352.4,0.14063518]
[1757343602093,1.28626,4352.5,4352.4,0.37463518]
[1757343602791,1.28626,4352.5,4352.4,0.58573518]
[1757343603297,1.28626,4352.5,4352.4,1.10633518]
[1757343603597,0.5356,4352.5,4352.4,1.10633518]
[1757343604793,0.41355,4352.6,4352.5,0.7317]
[1757343605092,0.72715,4352.6,4352.5,0.7317]
[1757343605296,0.41355,4352.6,4352.5,0.7317]
[1757343605788,0.41355,4352.6,4352.5,0.87233518]
[1757343606194,0.96825,4352.6,4352.5,0.87233518]
[1757343606691,1.18275,4352.6,4352.5,0.35173518]
[1757343606892,5.26364,4352.6,4352.1,3.2078]
[1757343607097,5.26364,4352.6,4351.6,0.18009626]
[1757343607098,0.328,4351.7,4351.6,3.2078]
[1757343607293,0.7692,4351.7,4351.6,3.4418]
[1757343608391,0.7692,4351.7,4351.6,3.6693]
[1757343609495,0.7692,4351.7,4351.6,3.8954]
[1757343609700,0.7692,4351.7,4351.6,4.2222]
[1757343610201,0.5547,4351.7,4351.6,4.2222]
[1757343610402,0.5547,4351.7,4351.6,3.8954]
[1757343610403,0.7692,4351.7,4351.6,3.8954]
[1757343611598,0.7692,4351.7,4351.6,4.2222]
[1757343615005,0.7692,4351.7,4351.6,3.6614]
[1757343615205,0.7692,4351.7,4351.6,3.2078]
[1757343615405,0.4621,4351.5,4351.4,33.101]
[1757343615609,0.4621,4351.5,4351.4,33.335]
[1757343616509,0.87575,4351.5,4351.4,33.335]
[1757343617606,1.31695,4351.5,4351.4,0.4615]
[1757343617810,1.31695,4351.5,4351.4,0.6876]
[1757343618107,1.31695,4351.5,4351.4,1.0144]
[1757343618299,1.31695,4351.5,4351.4,1.9086483]
[1757343618903,1.31695,4351.5,4351.4,1.6825483]
[1757343619510,1.31695,4351.5,4351.4,1.9086483]
[1757343620403,1.31695,4351.5,4351.4,0.6876]
[1757343622215,1.31695,4351.5,4351.4,0.4615]
[1757343622509,1.31695,4351.5,4351.4,0.234]
[1757343623814,1.31695,4351.5,4351.4,0.4615]
[1757343624006,1.18285,4351.5,4351.4,1.0144]
[1757343624201,1.18285,4351.5,4351.1,3.2078]
[1757343624202,0.85488,4351.2,4351.1,3.2078]
[1757343624406,1.18288,4351.2,4351.1,3.4418]
[1757343625113,1.18288,4351.2,4351.1,3.2078]
[1757343625412,1.18288,4351.2,4351.1,3.4418]
[1757343626215,1.18288,4351.2,4351.1,3.2078]
[1757343626403,1.18288,4351.2,4351.1,3.4418]
[1757343627018,1.18288,4351.2,4351.1,3.6693]
[1757343627311,1.18288,4351.2,4351.1,0.4615]
[1757343628303,1.18292,4350.8,4350.7,2.08865177]
[1757343628510,0.41374,4350.6,4350.5,1.63505177]
[1757343628707,0.85494,4350.6,4350.5,0.234]
[1757343629003,0.85494,4350.6,4350.5,0.4615]
[1757343629206,1.18294,4350.6,4350.5,0.4615]
[1757343629406,1.18294,4350.6,4350.5,0.6876]
[1757343630715,1.18294,4350.6,4350.5,0.234]
[1757343633117,0.5753,4350.0,4349.9,0.234]
[1757343633414,4.1111,4350.0,4349.9,0.234]
[1757343633614,0.41384,4349.5,4349.4,0.4536]
[1757343633913,0.96858,4349.1,4349.0,3.6614]
[1757343634217,0.41388,4349.1,4349.0,4.1182]
[1757343634718,0.41388,4349.1,4349.0,4.30370035]
[1757343635913,0.41388,4349.1,4349.0,8.30370035]
[1757343637014,0.41388,4349.1,4349.0,8.06970035]
[1757343637317,0.41388,4349.1,4349.0,8.30370035]
[1757343638819,0.74768,4349.1,4349.0,8.30370035]
[1757343639324,0.74768,4349.1,4349.0,4.30370035]
[1757343640913,0.4587,4349.0,4348.7,1.63505177]
[1757343641118,0.3338,4348.7,4348.6,33.107]
[1757343641320,0.74772,4348.7,4348.6,33.107]
[1757343641622,0.74772,4348.7,4348.6,33.341]
[1757343641823,0.41394,4348.5,4348.3,1.63505177]
[1757343642019,0.771,4348.4,4347.7,1.63505177]
[1757343642320,0.1249,4348.5,4347.7,0.4235]
[1757343642321,1.185,4347.8,4347.7,0.4235]
[1757343642516,1.185,4347.8,4347.7,0.216]
[1757343642712,0.771,4347.1,4346.7,1.63505177]
[1757343642920,0.9653,4346.8,4346.7,0.4235]
[1757343643117,1.0802,4346.8,4346.7,0.6575]
[1757343643319,1.0802,4346.8,4346.7,0.8925]
[1757343643620,0.529,4346.8,4346.7,1.07249792]
[1757343643826,1.3,4346.8,4346.7,0.83749792]
[1757343644424,1.3,4346.8,4346.7,1.07249792]
[1757343644425,0.529,4346.8,4346.7,1.07249792]
[1757343645123,0.529,4346.8,4346.4,3.2078]
[1757343645124,1.31003,4346.5,4346.4,3.2078]
[1757343645317,0.1149,4346.8,4346.4,0.8925]
[1757343645517,0.1149,4346.8,4346.7,0.6585]
[1757343645712,0.529,4346.8,4346.7,0.234]
[1757343645925,1.0802,4346.8,4346.7,0.6575]
[1757343646124,1.3,4346.8,4346.7,0.6575]
[1757343646522,0.53903,4346.5,4346.3,3.2078]
[1757343646833,0.74797,4346.1,4346.0,33.12]
[1757343647021,0.74797,4346.1,4346.0,33.355]
[1757343648020,0.3423,4346.5,4346.4,0.6585]
[1757343648221,0.75643,4346.5,4346.4,0.8935]
[1757343648624,1.09023,4346.5,4346.4,0.8935]
[1757343648827,0.41411,4346.7,4346.4,0.8935]
[1757343649029,0.41411,4346.7,4346.6,0.6585]
[1757343649222,0.41411,4346.7,4346.6,0.8935]
[1757343649223,0.74791,4346.7,4346.6,0.8935]
[1757343649528,0.41411,4346.7,4346.6,0.8935]
[1757343650028,0.96531,4346.7,4346.6,0.8935]
[1757343650421,0.96531,4346.7,4346.6,0.6585]
[1757343651030,1.18511,4346.7,4346.6,0.6585]
[1757343651229,1.18511,4346.7,4346.6,0.235]
[1757343651432,4.39291,4346.7,4346.6,0.235]
[1757343652030,8.39291,4346.7,4346.6,0.235]
[1757343654626,1.18511,4346.7,4346.6,0.6585]
[1757343654828,1.18511,4346.7,4346.6,0.451]
[1757343655334,1.18511,4346.7,4346.6,0.235]
[1757343655832,0.96531,4346.7,4346.6,0.8935]
[1757343656125,0.96531,4346.7,4346.6,0.6585]
[1757343656329,0.96531,4346.7,4346.6,0.235]
[1757343656330,1.18511,4346.7,4346.6,0.235]
[1757343656834,1.09013,4347.5,4347.4,0.7356]
[1757343657034,0.96523,4347.5,4347.4,0.9696]
[1757343659031,1.09013,4347.5,4347.4,0.6575]
[1757343659431,1.09013,4347.5,4347.4,0.45]
[1757343660636,1.09013,4347.5,4347.4,0.234]
[1757343661130,0.5536,4348.4,4347.5,0.1296]
[1757343661329,1.18495,4348.4,4348.3,0.216]
[1757343661529,1.18495,4348.4,4348.3,0.452]
[1757343663131,1.18495,4348.4,4348.3,0.236]
[1757343663938,1.18495,4348.4,4348.3,0.9716]
[1757343665342,0.96515,4348.4,4348.3,0.9716]
[1757343665638,1.18495,4348.4,4348.3,0.9716]
[1757343665933,0.41395,4348.4,4348.3,4.1794]
[1757343666135,1.15518,4349.1,4349.0,0.7565]
[1757343666338,0.62388,4349.1,4349.0,0.9925]
[1757343666539,0.62388,4349.1,4349.0,1.126]
[1757343666933,3.2078,4349.9,4349.7,0.4416]
[1757343666934,0.3151,4349.9,4349.7,0.4416]
[1757343667132,0.7413,4349.9,4349.8,0.236]
[1757343667636,0.4262,4349.9,4349.8,0.9925]
[1757343667835,0.21,4349.9,4349.8,0.9925]
[1757343668335,0.5251,4350.3,4350.2,0.7565]
[1757343668535,0.7413,4350.3,4350.2,0.9925]
[1757343669346,0.4262,4350.3,4350.2,0.9925]
[1757343670435,0.7413,4350.3,4350.2,0.4554]
[1757343670842,0.7413,4350.3,4350.2,0.236]
[1757343671038,0.7413,4350.3,4350.2,0.4554]
[1757343671441,0.7413,4350.3,4350.2,0.7703]
[1757343673342,0.7413,4350.3,4350.2,0.9925]
[1757343673840,3.2078,4350.4,4350.2,0.9925]
[1757343674044,0.7413,4350.8,4350.7,0.2194]
[1757343674341,0.7413,4350.8,4350.7,0.5343]